[Event "23rd Hogeschool Zeeland Open 2019"]
[Site "Vlissingen"]
[Date "2019.08.04"]
[Round "1.12"]
[White "De Feijter, David"]
[Black "Zwirs, Nico"]
[Result "0-1"]
[ECO "A03"]
[WhiteElo "1778"]
[BlackElo "2380"]
[Annotator "NA"]
[PlyCount "86"]
[EventDate "2019.08.03"]
[EventType "swiss"]
[EventCountry "NED"]
[SourceTitle "playchess.com"]
[Source "ChessBase"]
[SourceQuality "1"]
[TimeControl "40/5400+30:1800+30"]

1. g3 {[%emt 0:00:00]} d5 {[%emt 0:00:00]} 2. Bg2 {[%emt 0:00:00]} Nf6 {[%emt 0:00:11]} 3. f4 {[%emt 0:00:07]} c6 {[%emt 0:01:38]} 4. Nf3 {[%emt 0:03:20]} Qb6 {[%emt 0:00:31]} 5. b3 {[%emt 0:14:57]} g6 {[%emt 0:01:00]} 6. Bb2 {[%emt 0:04:14]} Bg7 {[%emt 0:00:09]} 7. e3 {[%emt 0:01:08]} O-O {[%emt 0:01:06]} 8. Nc3 {[%emt 0:04:11]} a5 {[%emt 0:01:49]} 9. Na4 {[%emt 0:03:46]} Qc7 {[%emt 0:01:07]} 10. Be5 {[%emt 0:05:55]} Qd8 {[%emt 0:00:40]} 11. O-O {[%emt 0:02:26]} Bg4 {[%emt 0:03:39]} 12. h3 {[%emt 0:11:03]} Bxf3 {[%emt 0:00:07]} 13. Bxf3 {[%emt 0:00:10]} Nbd7 {[%emt 0:00:09]} 14. Bb2 {[%emt 0:03:04]} b5 {[%emt 0:02:29]} 15. Nc3 {[%emt 0:00:07]} e5 {[%emt 0:00:17]} 16. Ne2 {[%emt 0:02:21]} Re8 {[%emt 0:00:55]} 17. Bg2 {[%emt 0:04:26]} exf4 {[%emt 0:04:21]} 18. Nxf4 {[%emt 0:02:22]} Nc5 {[%emt 0:01:30]} 19. Kh2 {[%emt 0:01:47]} Qc7 {[%emt 0:05:19]} 20. Bxf6 {[%emt 0:06:56]} Bxf6 {[%emt 0:00:27]} 21. Nxd5 {[%emt 0:00:04]} cxd5 {[%emt 0:00:08]} 22. Rxf6 {[%emt 0:00:05]} Rad8 {[%emt 0:00:02]} 23. Qe2 {[%emt 0:04:51]} h5 {[%emt 0:07:33]} 24. Raf1 {[%emt 0:07:54]} Re7 {[%emt 0:00:13]} 25. d4 {[%emt 0:02:40]} Ne6 {[%emt 0:02:51]} 26. R1f2 {[%emt 0:01:06]} Nxd4 {[%emt 0:02:27]} 27. Qd3 {[%emt 0:00:50]} Nf5 {[%emt 0:00:36]} 28. R2xf5 {[%emt 0:02:03]} gxf5 {[%emt 0:00:11]} 29. Qxf5 {[%emt 0:00:04]} Qe5 {[%emt 0:01:16]} 30. Qf3 {[%emt 0:00:59]} Rd6 {[%emt 0:06:25]} 31. Rf5 {[%emt 0:00:11]} Qxe3 {[%emt 0:00:12]} 32. Qxh5 {[%emt 0:00:06]} Rg6 {[%emt 0:00:09]} 33. Rf3 {[%emt 0:01:25]} Qg5 {[%emt 0:00:25]} 34. Qxg5 {[%emt 0:00:39]} Rxg5 {[%emt 0:00:02]} 35. Rd3 {[%emt 0:00:16]} Re2 {[%emt 0:00:11]} 36. Rc3 {[%emt 0:04:21]} Rf5 {[%emt 0:01:48]} 37. Kg1 {[%emt 0:00:03]} Re1+ {[%emt 0:00:11]} 38. Kh2 {[%emt 0:00:09]} Rf2 {[%emt 0:00:05]} 39. g4 {[%emt 0:03:21]} Ree2 {[%emt 0:00:17]} 40. Rg3 {[%emt 0:00:04]} Rxc2 {[%emt 0:00:08]} 41. a3 {[%emt 0:32:43]} d4 {[%emt 0:30:42]} 42. Kg1 {[%emt 0:01:12]} Rxg2+ {[%emt 0:01:32]} 43. Rxg2 {[%emt 0:00:11]} d3 {[%emt 0:00:02]} 0-1

[Event "23rd Hogeschool Zeeland Open 2019"]
[Site "Vlissingen"]
[Date "2019.08.04"]
[Round "1.13"]
[White "Grooten, Herman"]
[Black "Pang, Khai Jie Ryan"]
[Result "1-0"]
[ECO "A77"]
[WhiteElo "2310"]
[BlackElo "1770"]
[Annotator "NA"]
[PlyCount "71"]
[EventDate "2019.08.03"]
[EventType "swiss"]
[EventCountry "NED"]
[SourceTitle "playchess.com"]
[Source "ChessBase"]
[SourceQuality "1"]
[TimeControl "40/5400+30:1800+30"]

1. d4 {[%emt 0:00:00]} Nf6 {[%emt 0:01:33]} 2. c4 {[%emt 0:00:00]} e6 {[%emt 0:01:41]} 3. Nf3 {[%emt 0:00:14]} c5 {[%emt 0:01:21]} 4. d5 {[%emt 0:00:07]} exd5 {[%emt 0:01:28]} 5. cxd5 {[%emt 0:00:05]} d6 {[%emt 0:01:04]} 6. Nc3 {[%emt 0:00:08]} g6 {[%emt 0:02:03]} 7. Nd2 {[%emt 0:00:08]} Bg7 {[%emt 0:03:58]} 8. e4 {[%emt 0:01:45]} O-O {[%emt 0:01:13]} 9. Be2 {[%emt 0:00:10]} Re8 {[%emt 0:01:41]} 10. O-O {[%emt 0:00:17]} b6 {[%emt 0:02:19]} 11. a4 {[%emt 0:08:23]} Ba6 {[%emt 0:01:52]} 12. Bb5 {[%emt 0:01:53]} Bxb5 {[%emt 0:09:33]} 13. axb5 {[%emt 0:01:16]} Nbd7 {[%emt 0:02:39]} 14. Ra4 {[%emt 0:07:48]} Ne5 {[%emt 0:02:14]} 15. Qe2 {[%emt 0:02:14]} g5 {[%emt 0:02:54]} 16. Rd1 {[%emt 0:02:18]} Nfd7 {[%emt 0:00:45]} 17. Nf1 {[%emt 0:04:18]} Ng6 {[%emt 0:06:17]} 18. Ng3 {[%emt 0:03:02]} Be5 {[%emt 0:06:59]} 19. Nf5 {[%emt 0:07:14]} Qf6 {[%emt 0:00:54]} 20. Nh6+ {[%emt 0:02:06]} Kg7 {[%emt 0:00:44]} 21. Ng4 {[%emt 0:00:41]} Qe7 {[%emt 0:02:02]} 22. g3 {[%emt 0:01:33]} Kh8 {[%emt 0:04:21]} 23. Nh6 {[%emt 0:01:27]} f6 {[%emt 0:02:05]} 24. Qh5 {[%emt 0:02:50]} Nb8 {[%emt 0:04:25]} 25. Ne2 {[%emt 0:04:06]} Qd7 {[%emt 0:01:44]} 26. f4 {[%emt 0:02:17]} gxf4 {[%emt 0:04:02]} 27. gxf4 {[%emt 0:00:34]} Qxb5 {[%emt 0:01:53]} 28. Ra3 {[%emt 0:03:17]} Nd7 {[%emt 0:04:52]} 29. fxe5 {[%emt 0:04:42]} Ndxe5 {[%emt 0:01:06]} 30. Rh3 {[%emt 0:04:59]} Qd7 {[%emt 0:02:08]} 31. Rf1 {[%emt 0:00:35]} Rf8 {[%emt 0:01:31]} 32. Kh1 {[%emt 0:01:15]} Rad8 {[%emt 0:02:31]} 33. Nf5 {[%emt 0:00:54]} Qf7 {[%emt 0:02:23]} 34. Rg1 {[%emt 0:01:07]} b5 {[%emt 0:01:40]} 35. b3 {[%emt 0:01:11]} Ne7 {[%emt 0:02:39]} 36. Rg7 {[%emt 0:01:03]} 1-0

[Event "23rd Hogeschool Zeeland Open 2019"]
[Site "Vlissingen"]
[Date "2019.08.04"]
[Round "1.14"]
[White "Koster, Paul"]
[Black "Nebolsina, Vera"]
[Result "0-1"]
[ECO "B06"]
[WhiteElo "1764"]
[BlackElo "2269"]
[Annotator "NA"]
[PlyCount "98"]
[EventDate "2019.08.03"]
[EventType "swiss"]
[EventCountry "NED"]
[SourceTitle "playchess.com"]
[Source "ChessBase"]
[SourceQuality "1"]
[TimeControl "40/5400+30:1800+30"]

1. e4 {[%emt 0:00:00]} g6 {[%emt 0:00:00]} 2. d4 {[%emt 0:00:00]} Bg7 {[%emt 0:00:00]} 3. Nc3 {[%emt 0:00:27]} d6 {[%emt 0:00:11]} 4. Bf4 {[%emt 0:05:46]} a6 {[%emt 0:01:39]} 5. Nf3 {[%emt 0:09:58]} b5 {[%emt 0:00:42]} 6. a4 {[%emt 0:11:30]} b4 {[%emt 0:00:50]} 7. Nd5 {[%emt 0:00:22]} a5 {[%emt 0:01:25]} 8. c3 {[%emt 0:00:41]} e6 {[%emt 0:02:33]} 9. Ne3 {[%emt 0:00:47]} Bb7 {[%emt 0:03:30]} 10. e5 {[%emt 0:04:48]} Ne7 {[%emt 0:07:14]} 11. exd6 {[%emt 0:03:50]} cxd6 {[%emt 0:00:07]} 12. Bb5+ {[%emt 0:03:42]} Nbc6 {[%emt 0:00:51]} 13. Nc4 {[%emt 0:09:13]} Nc8 {[%emt 0:01:30]} 14. d5 {[%emt 0:09:52]} exd5 {[%emt 0:00:52]} 15. Qxd5 {[%emt 0:01:16]} O-O {[%emt 0:00:09]} 16. O-O {[%emt 0:08:07]} N8e7 {[%emt 0:01:45]} 17. Qxd6 {[%emt 0:02:02]} bxc3 {[%emt 0:00:23]} 18. bxc3 {[%emt 0:01:11]} Nd5 {[%emt 0:03:04]} 19. Bxc6 {[%emt 0:04:36]} Bxc6 {[%emt 0:00:11]} 20. Qxc6 {[%emt 0:03:27]} Nxf4 {[%emt 0:00:07]} 21. Qe4 {[%emt 0:01:52]} Qf6 {[%emt 0:01:29]} 22. Qe5 {[%emt 0:04:55]} Rfe8 {[%emt 0:05:25]} 23. Qxf6 {[%emt 0:02:10]} Ne2+ {[%emt 0:00:06]} 24. Kh1 {[%emt 0:00:07]} Bxf6 {[%emt 0:00:04]} 25. Nd4 {[%emt 0:00:30]} Nxc3 {[%emt 0:00:32]} 26. Nf3 {[%emt 0:01:54]} Re4 {[%emt 0:02:59]} 27. Nfd2 {[%emt 0:01:12]} Re2 {[%emt 0:00:06]} 28. Ra3 {[%emt 0:02:22]} Rd8 {[%emt 0:00:32]} 29. Nf3 {[%emt 0:01:27]} Rd5 {[%emt 0:11:21]} 30. Kg1 {[%emt 0:00:34]} Rc5 {[%emt 0:00:34]} 31. Ne3 {[%emt 0:04:53]} Rb2 {[%emt 0:00:19]} 32. h3 {[%emt 0:00:48]} Rb4 {[%emt 0:00:41]} 33. Ne1 {[%emt 0:00:46]} Rxa4 {[%emt 0:02:36]} 34. Rxa4 {[%emt 0:00:13]} Nxa4 {[%emt 0:00:04]} 35. Nd3 {[%emt 0:00:29]} Rb5 {[%emt 0:00:09]} 36. Rc1 {[%emt 0:00:54]} Nc3 {[%emt 0:00:20]} 37. Kf1 {[%emt 0:00:14]} a4 {[%emt 0:00:22]} 38. Nc4 {[%emt 0:01:13]} Nb1 {[%emt 0:04:53]} 39. Ndb2 {[%emt 0:00:47]} a3 {[%emt 0:00:50]} 40. Rxb1 {[%emt 0:00:29]} axb2 {[%emt 0:01:30]} 41. Ke2 {[%emt 0:00:57]} Rb4 {[%emt 0:00:19]} 42. Kd3 {[%emt 0:01:43]} Rb3+ {[%emt 0:00:08]} 43. Kd2 {[%emt 0:00:13]} Kf8 {[%emt 0:00:52]} 44. Ne3 {[%emt 0:04:44]} Ke8 {[%emt 0:00:58]} 45. Nd1 {[%emt 0:00:58]} Rb5 {[%emt 0:00:14]} 46. Kc2 {[%emt 0:03:24]} Rf5 {[%emt 0:00:10]} 47. f3 {[%emt 0:00:42]} Rc5+ {[%emt 0:00:10]} 48. Kd2 {[%emt 0:01:53]} Rc1 {[%emt 0:00:21]} 49. Rxb2 {[%emt 0:01:08]} Rxd1+ {[%emt 0:00:08]} 0-1

[Event "23rd Hogeschool Zeeland Open 2019"]
[Site "Vlissingen"]
[Date "2019.08.04"]
[Round "1.15"]
[White "Klepke, Ricardo"]
[Black "De Meester, Johan"]
[Result "1-0"]
[ECO "E01"]
[WhiteElo "2267"]
[BlackElo "1748"]
[Annotator "NA"]
[PlyCount "75"]
[EventDate "2019.08.03"]
[EventType "swiss"]
[EventCountry "NED"]
[SourceTitle "playchess.com"]
[Source "ChessBase"]
[SourceQuality "1"]
[TimeControl "40/5400+30:1800+30"]

1. d4 {[%emt 0:00:00]} d5 {[%emt 0:00:00]} 2. c4 {[%emt 0:00:00]} c6 {[%emt 0:00:00]} 3. Nf3 {[%emt 0:00:00]} Nf6 {[%emt 0:00:07]} 4. Qc2 {[%emt 0:00:04]} e6 {[%emt 0:02:30]} 5. g3 {[%emt 0:00:19]} Nbd7 {[%emt 0:00:41]} 6. Bg2 {[%emt 0:00:31]} Bd6 {[%emt 0:00:29]} 7. O-O {[%emt 0:01:20]} O-O {[%emt 0:06:11]} 8. Nbd2 {[%emt 0:01:47]} Re8 {[%emt 0:01:44]} 9. e4 {[%emt 0:06:08]} dxe4 {[%emt 0:01:19]} 10. Nxe4 {[%emt 0:00:24]} Nxe4 {[%emt 0:00:26]} 11. Qxe4 {[%emt 0:00:07]} Nf6 {[%emt 0:00:13]} 12. Qe2 {[%emt 0:00:36]} c5 {[%emt 0:05:13]} 13. Rd1 {[%emt 0:02:58]} cxd4 {[%emt 0:02:08]} 14. Nxd4 {[%emt 0:00:32]} Qb6 {[%emt 0:02:36]} 15. Nb5 {[%emt 0:14:59]} Bc5 {[%emt 0:10:30]} 16. a4 {[%emt 0:14:48]} a5 {[%emt 0:00:52]} 17. Be3 {[%emt 0:09:33]} Bd7 {[%emt 0:00:40]} 18. Bxc5 {[%emt 0:05:59]} Qxc5 {[%emt 0:00:16]} 19. Bxb7 {[%emt 0:00:12]} Rab8 {[%emt 0:05:21]} 20. Bg2 {[%emt 0:00:46]} e5 {[%emt 0:04:54]} 21. Qe3 {[%emt 0:09:38]} Qb4 {[%emt 0:05:28]} 22. Qd2 {[%emt 0:04:11]} Qc5 {[%emt 0:03:31]} 23. Qe3 {[%emt 0:02:28]} Qb4 {[%emt 0:00:24]} 24. Qa3 {[%emt 0:00:09]} Qe7 {[%emt 0:03:57]} 25. Qxe7 {[%emt 0:00:40]} Rxe7 {[%emt 0:00:08]} 26. Rd6 {[%emt 0:00:35]} Re6 {[%emt 0:03:09]} 27. Rad1 {[%emt 0:00:43]} Rxd6 {[%emt 0:06:55]} 28. Rxd6 {[%emt 0:00:10]} Kf8 {[%emt 0:00:13]} 29. Ra6 {[%emt 0:00:52]} Be6 {[%emt 0:01:04]} 30. c5 {[%emt 0:14:16]} Rd8 {[%emt 0:04:55]} 31. Nc3 {[%emt 0:00:08]} Bc4 {[%emt 0:02:17]} 32. Rxa5 {[%emt 0:00:46]} Rd2 {[%emt 0:03:18]} 33. c6 {[%emt 0:01:06]} Ne8 {[%emt 0:00:40]} 34. c7 {[%emt 0:04:15]} Rc2 {[%emt 0:00:56]} 35. c8=Q {[%emt 0:00:18]} Rc1+ {[%emt 0:00:19]} 36. Bf1 {[%emt 0:00:05]} Bxf1 {[%emt 0:24:36]} 37. Qc5+ {[%emt 0:00:14]} Kg8 {[%emt 0:00:00]} 38. f4 {[%emt 0:01:09]} 1-0

[Event "23rd Hogeschool Zeeland Open 2019"]
[Site "Vlissingen"]
[Date "2019.08.04"]
[Round "1.16"]
[White "Kunnavakkam, Sudarshanagopal V"]
[Black "Elgersma, Onno"]
[Result "0-1"]
[ECO "B12"]
[WhiteElo "1744"]
[BlackElo "2232"]
[Annotator "NA"]
[PlyCount "116"]
[EventDate "2019.08.03"]
[EventType "swiss"]
[EventCountry "NED"]
[SourceTitle "playchess.com"]
[Source "ChessBase"]
[SourceQuality "1"]
[TimeControl "40/5400+30:1800+30"]

1. e4 {[%emt 0:00:28]} c6 {[%emt 0:00:00]} 2. d4 {[%emt 0:01:15]} d5 {[%emt 0:00:00]} 3. e5 {[%emt 0:00:53]} Bf5 {[%emt 0:00:00]} 4. h4 {[%emt 0:01:20]} h5 {[%emt 0:00:01]} 5. c4 {[%emt 0:00:26]} e6 {[%emt 0:01:58]} 6. Nc3 {[%emt 0:00:50]} Ne7 {[%emt 0:01:09]} 7. Bg5 {[%emt 0:01:08]} Qb6 {[%emt 0:09:13]} 8. Qd2 {[%emt 0:02:40]} Nd7 {[%emt 0:12:36]} 9. Nge2 {[%emt 0:06:24]} dxc4 {[%emt 0:02:49]} 10. Ng3 {[%emt 0:00:51]} Bd3 {[%emt 0:07:01]} 11. Bxd3 {[%emt 0:01:11]} cxd3 {[%emt 0:00:03]} 12. Qxd3 {[%emt 0:01:08]} Rd8 {[%emt 0:21:36]} 13. Qc4 {[%emt 0:04:55]} Rc8 {[%emt 0:05:10]} 14. O-O {[%emt 0:04:07]} Ng6 {[%emt 0:13:22]} 15. Rfe1 {[%emt 0:04:50]} Qb4 {[%emt 0:03:17]} 16. Qd3 {[%emt 0:02:06]} Nb6 {[%emt 0:02:45]} 17. f4 {[%emt 0:01:41]} c5 {[%emt 0:02:51]} 18. f5 {[%emt 0:07:03]} Qxd4+ {[%emt 0:09:21]} 19. Qxd4 {[%emt 0:00:45]} cxd4 {[%emt 0:00:01]} 20. Nb5 {[%emt 0:01:11]} Rc5 {[%emt 0:02:00]} 21. Nxd4 {[%emt 0:01:11]} exf5 {[%emt 0:00:48]} 22. e6 {[%emt 0:05:17]} f6 {[%emt 0:00:20]} 23. Bd2 {[%emt 0:03:12]} Rd5 {[%emt 0:01:31]} 24. Ngxf5 {[%emt 0:03:19]} Bc5 {[%emt 0:00:29]} 25. Be3 {[%emt 0:01:03]} O-O {[%emt 0:02:22]} 26. Nb3 {[%emt 0:05:14]} Bxe3+ {[%emt 0:00:21]} 27. Nxe3 {[%emt 0:00:59]} Re5 {[%emt 0:00:02]} 28. Nc2 {[%emt 0:03:21]} Re8 {[%emt 0:00:22]} 29. Rxe5 {[%emt 0:00:34]} Nxe5 {[%emt 0:01:10]} 30. Nc5 {[%emt 0:02:47]} Nd5 {[%emt 0:00:33]} 31. Rd1 {[%emt 0:01:08]} Nf4 {[%emt 0:00:58]} 32. Nxb7 {[%emt 0:00:46]} Nxe6 {[%emt 0:00:38]} 33. Nd4 {[%emt 0:01:28]} Nxd4 {[%emt 0:00:41]} 34. Rxd4 {[%emt 0:00:06]} Kh7 {[%emt 0:00:51]} 35. Nd6 {[%emt 0:01:28]} Rb8 {[%emt 0:00:33]} 36. Rd2 {[%emt 0:00:38]} Ng4 {[%emt 0:00:33]} 37. Ne4 {[%emt 0:01:12]} Re8 {[%emt 0:00:23]} 38. Re2 {[%emt 0:02:05]} Kg6 {[%emt 0:00:24]} 39. Kf1 {[%emt 0:01:08]} Rc8 {[%emt 0:00:17]} 40. Nc3 {[%emt 0:00:13]} Ne5 {[%emt 0:00:38]} 41. Kf2 {[%emt 0:30:38]} Kf5 {[%emt 0:06:58]} 42. Nb5 {[%emt 0:00:00]} Rc1 {[%emt 0:12:27]} 43. Nd4+ {[%emt 0:00:00]} Kg6 {[%emt 0:01:16]} 44. Ne6 {[%emt 0:00:00]} Ng4+ {[%emt 0:00:39]} 45. Kg3 {[%emt 0:00:00]} Rd1 {[%emt 0:00:36]} 46. Nc5 {[%emt 0:00:00]} Kf5 {[%emt 0:02:40]} 47. Kf3 {[%emt 0:00:00]} Rf1+ {[%emt 0:02:41]} 48. Kg3 {[%emt 0:00:00]} g5 {[%emt 0:00:54]} 49. Nd3 {[%emt 0:00:00]} Rh1 {[%emt 0:04:03]} 50. hxg5 {[%emt 0:00:00]} fxg5 {[%emt 0:00:02]} 51. Nf2 {[%emt 0:00:00]} h4+ {[%emt 0:00:33]} 52. Kf3 {[%emt 0:00:00]} Rf1 {[%emt 0:00:22]} 53. b3 {[%emt 0:00:00]} Nxf2 {[%emt 0:01:11]} 54. Rxf2 {[%emt 0:00:00]} g4+ {[%emt 0:00:11]} 55. Ke3+ {[%emt 0:00:00]} Rxf2 {[%emt 0:00:03]} 56. Kxf2 {[%emt 0:00:00]} Ke4 {[%emt 0:00:06]} 57. Ke2 {[%emt 0:00:00]} Kd4 {[%emt 0:00:10]} 58. b4 {[%emt 0:00:00]} Ke5 {[%emt 0:05:01]} 0-1

[Event "23rd Hogeschool Zeeland Open 2019"]
[Site "Vlissingen"]
[Date "2019.08.04"]
[Round "2.2"]
[White "Mityaev, Alexandr"]
[Black "L'Ami, Erwin"]
[Result "0-1"]
[ECO "A85"]
[WhiteElo "2087"]
[BlackElo "2633"]
[Annotator "ChessBase"]
[PlyCount "86"]
[EventDate "2019.08.03"]
[EventType "swiss"]
[EventCountry "NED"]
[SourceTitle "playchess.com"]
[Source "ChessBase"]
[SourceQuality "1"]
[TimeControl "40/5400+30:1800+30"]

1. d4 {[%emt 0:00:15]} f5 {[%emt 0:00:26]} 2. c4 {[%emt 0:00:22]} Nf6 {[%emt 0:00:04]} 3. Nc3 {[%emt 0:00:08]} e6 {[%emt 0:01:04]} 4. Nf3 {[%emt 0:00:18]} b6 {[%emt 0:01:57]} 5. a3 {[%emt 0:04:19]} Ba6 {[%emt 0:08:47]} 6. e3 {[%emt 0:04:43]} g6 {[%emt 0:01:20]} 7. b4 {[%emt 0:00:46]} Bg7 {[%emt 0:00:40]} 8. Bb2 {[%emt 0:02:51]} O-O {[%emt 0:01:08]} 9. Be2 {[%emt 0:02:08]} Qe7 {[%emt 0:02:17]} 10. O-O {[%emt 0:05:21]} d6 {[%emt 0:05:45]} 11. Qb3 {[%emt 0:07:05]} Nbd7 {[%emt 0:04:44]} 12. Nb5 {[%emt 0:10:12]} Rfc8 {[%emt 0:02:36]} 13. c5 {[%emt 0:05:59]} bxc5 {[%emt 0:04:57]} 14. Nxd6 {[%emt 0:08:12]} Bxe2 {[%emt 0:00:39]} 15. Nxc8 {[%emt 0:00:16]} Rxc8 {[%emt 0:00:10]} 16. Rfc1 {[%emt 0:01:15]} cxb4 {[%emt 0:06:03]} 17. axb4 {[%emt 0:03:20]} a6 {[%emt 0:00:37]} 18. b5 {[%emt 0:05:51]} Bxb5 {[%emt 0:01:10]} 19. Ba3 {[%emt 0:00:08]} Qe8 {[%emt 0:00:11]} 20. Ra2 {[%emt 0:04:21]} h6 {[%emt 0:01:46]} 21. Rac2 {[%emt 0:00:13]} c6 {[%emt 0:01:18]} 22. Nd2 {[%emt 0:03:05]} Nb6 {[%emt 0:02:19]} 23. Bc5 {[%emt 0:00:57]} Nfd7 {[%emt 0:01:10]} 24. Qa2 {[%emt 0:02:15]} Nxc5 {[%emt 0:03:56]} 25. dxc5 {[%emt 0:02:34]} Nd5 {[%emt 0:00:10]} 26. Qa3 {[%emt 0:01:10]} Qe7 {[%emt 0:02:01]} 27. Nc4 {[%emt 0:00:47]} Bf8 {[%emt 0:00:47]} 28. Nd6 {[%emt 0:00:38]} Rd8 {[%emt 0:00:20]} 29. e4 {[%emt 0:00:29]} fxe4 {[%emt 0:03:04]} 30. Nxe4 {[%emt 0:00:45]} Nf4 {[%emt 0:00:59]} 31. Qe3 {[%emt 0:03:59]} e5 {[%emt 0:01:06]} 32. Nd6 {[%emt 0:00:58]} Qe6 {[%emt 0:01:40]} 33. Nxb5 {[%emt 0:06:39]} Qd5 {[%emt 0:02:06]} 34. f3 {[%emt 0:01:24]} axb5 {[%emt 0:00:16]} 35. g3 {[%emt 0:03:29]} Ne6 {[%emt 0:01:44]} 36. Kg2 {[%emt 0:00:58]} Nd4 {[%emt 0:00:11]} 37. Rc3 {[%emt 0:02:09]} b4 {[%emt 0:00:35]} 38. Rc4 {[%emt 0:01:57]} b3 {[%emt 0:00:08]} 39. Qe4 {[%emt 0:00:55]} Qxe4 {[%emt 0:00:56]} 40. fxe4 {[%emt 0:00:06]} Rb8 {[%emt 0:00:30]} 41. Rb1 {[%emt 0:33:34]} Kf7 {[%emt 0:31:08]} 42. Kf2 {[%emt 0:00:23]} Ke6 {[%emt 0:00:29]} 43. Ke3 {[%emt 0:00:30]} Nc2+ {[%emt 0:00:09]} 0-1

[Event "23rd Hogeschool Zeeland Open 2019"]
[Site "Vlissingen"]
[Date "2019.08.04"]
[Round "2.3"]
[White "Van Wely, Loek"]
[Black "Kraemer, Max"]
[Result "1-0"]
[ECO "A09"]
[WhiteElo "2616"]
[BlackElo "2041"]
[Annotator "ChessBase"]
[PlyCount "67"]
[EventDate "2019.08.03"]
[EventType "swiss"]
[EventCountry "NED"]
[SourceTitle "playchess.com"]
[Source "ChessBase"]
[SourceQuality "1"]
[TimeControl "40/5400+30:1800+30"]

1. Nf3 {[%emt 0:13:12]} d5 {[%emt 0:00:00]} 2. c4 {[%emt 0:00:16]} d4 {[%emt 0:00:11]} 3. b4 {[%emt 0:00:44]} g6 {[%emt 0:07:47]} 4. g3 {[%emt 0:02:20]} Bg7 {[%emt 0:00:23]} 5. d3 {[%emt 0:01:06]} e5 {[%emt 0:04:52]} 6. Bg2 {[%emt 0:00:50]} Ne7 {[%emt 0:01:10]} 7. O-O {[%emt 0:00:40]} O-O {[%emt 0:00:05]} 8. Nbd2 {[%emt 0:02:01]} c6 {[%emt 0:04:57]} 9. Rb1 {[%emt 0:12:08]} Na6 {[%emt 0:02:55]} 10. a4 {[%emt 0:01:27]} Nc7 {[%emt 0:04:20]} 11. b5 {[%emt 0:06:45]} c5 {[%emt 0:10:11]} 12. a5 {[%emt 0:08:49]} Ne6 {[%emt 0:10:42]} 13. a6 {[%emt 0:07:49]} Rb8 {[%emt 0:01:38]} 14. axb7 {[%emt 0:00:11]} Bxb7 {[%emt 0:00:06]} 15. Qa4 {[%emt 0:01:11]} Qb6 {[%emt 0:01:10]} 16. Ra1 {[%emt 0:04:27]} Ra8 {[%emt 0:05:12]} 17. Nb3 {[%emt 0:02:14]} e4 {[%emt 0:03:41]} 18. dxe4 {[%emt 0:05:15]} Bxe4 {[%emt 0:00:29]} 19. Ra2 {[%emt 0:03:46]} Rfd8 {[%emt 0:07:12]} 20. Bd2 {[%emt 0:02:28]} Rd6 {[%emt 0:01:32]} 21. Rfa1 {[%emt 0:08:13]} h6 {[%emt 0:13:05]} 22. Qa3 {[%emt 0:01:52]} d3 {[%emt 0:05:11]} 23. Ba5 {[%emt 0:03:44]} Qb8 {[%emt 0:02:02]} 24. Re1 {[%emt 0:00:10]} Qc8 {[%emt 0:02:07]} 25. exd3 {[%emt 0:00:21]} Bxd3 {[%emt 0:00:51]} 26. Nfd2 {[%emt 0:00:29]} Rb8 {[%emt 0:02:24]} 27. Nxc5 {[%emt 0:01:22]} Nxc5 {[%emt 0:01:38]} 28. Rxe7 {[%emt 0:00:08]} Bd4 {[%emt 0:02:07]} 29. Bc3 {[%emt 0:01:36]} Qg4 {[%emt 0:01:58]} 30. Bxd4 {[%emt 0:02:13]} Qxd4 {[%emt 0:00:26]} 31. Qxa7 {[%emt 0:00:16]} Rf8 {[%emt 0:01:38]} 32. Rc7 {[%emt 0:02:53]} Ne4 {[%emt 0:02:15]} 33. Qxd4 {[%emt 0:00:19]} Rxd4 {[%emt 0:00:04]} 34. Bxe4 {[%emt 0:00:14]} 1-0

[Event "23rd Hogeschool Zeeland Open 2019"]
[Site "Vlissingen"]
[Date "2019.08.04"]
[Round "2.4"]
[White "Rosmuller, Anton"]
[Black "Ortiz Suarez, Isan Reynaldo"]
[Result "0-1"]
[ECO "A02"]
[WhiteElo "2073"]
[BlackElo "2551"]
[Annotator "ChessBase"]
[PlyCount "75"]
[EventDate "2019.08.03"]
[EventType "swiss"]
[EventCountry "NED"]
[SourceTitle "playchess.com"]
[Source "ChessBase"]
[SourceQuality "1"]
[TimeControl "40/5400+30:1800+30"]

1. g3 {[%emt 0:07:05]} c5 {[%emt 0:00:00]} 2. Bg2 {[%emt 0:00:07]} Nc6 {[%emt 0:00:00]} 3. f4 {[%emt 0:00:19]} g6 {[%emt 0:00:57]} 4. Nf3 {[%emt 0:00:12]} Bg7 {[%emt 0:00:13]} 5. O-O {[%emt 0:01:58]} Nf6 {[%emt 0:02:37]} 6. d3 {[%emt 0:00:22]} O-O {[%emt 0:00:16]} 7. c3 {[%emt 0:04:05]} d6 {[%emt 0:00:25]} 8. Na3 {[%emt 0:08:26]} Rb8 {[%emt 0:01:23]} 9. Bd2 {[%emt 0:06:02]} b5 {[%emt 0:00:25]} 10. Nh4 {[%emt 0:08:14]} Bd7 {[%emt 0:01:09]} 11. f5 {[%emt 0:00:08]} b4 {[%emt 0:02:17]} 12. Nc2 {[%emt 0:08:25]} bxc3 {[%emt 0:01:16]} 13. bxc3 {[%emt 0:00:39]} Ne5 {[%emt 0:00:35]} 14. Qc1 {[%emt 0:02:41]} Qa5 {[%emt 0:08:07]} 15. Ne1 {[%emt 0:07:58]} Rb6 {[%emt 0:07:44]} 16. fxg6 {[%emt 0:12:09]} hxg6 {[%emt 0:04:02]} 17. Nhf3 {[%emt 0:04:54]} Nc6 {[%emt 0:04:01]} 18. Ng5 {[%emt 0:00:40]} Rfb8 {[%emt 0:00:50]} 19. Nef3 {[%emt 0:00:32]} Be8 {[%emt 0:01:35]} 20. c4 {[%emt 0:05:53]} Qa4 {[%emt 0:01:15]} 21. Bc3 {[%emt 0:00:08]} e5 {[%emt 0:01:52]} 22. Nd2 {[%emt 0:12:05]} Nd4 {[%emt 0:01:15]} 23. Bxd4 {[%emt 0:00:33]} cxd4 {[%emt 0:00:12]} 24. c5 {[%emt 0:03:14]} dxc5 {[%emt 0:06:06]} 25. Nc4 {[%emt 0:00:25]} Rb5 {[%emt 0:05:47]} 26. Qe1 {[%emt 0:02:22]} Qa6 {[%emt 0:04:21]} 27. g4 {[%emt 0:00:21]} Nxg4 {[%emt 0:12:54]} 28. Qh4 {[%emt 0:00:06]} Nf6 {[%emt 0:00:15]} 29. Nxe5 {[%emt 0:01:42]} c4 {[%emt 0:00:13]} 30. Nxc4 {[%emt 0:01:05]} Nh5 {[%emt 0:00:11]} 31. Ne4 {[%emt 0:00:22]} Qe6 {[%emt 0:02:38]} 32. a4 {[%emt 0:00:10]} Rb4 {[%emt 0:03:25]} 33. Ncd6 {[%emt 0:01:08]} f5 {[%emt 0:03:00]} 34. Nxe8 {[%emt 0:00:33]} Rxe8 {[%emt 0:00:05]} 35. Bh3 {[%emt 0:00:08]} Qe5 {[%emt 0:06:46]} 36. Rxf5 {[%emt 0:00:49]} gxf5 {[%emt 0:00:52]} 37. Qxh5 {[%emt 0:00:06]} fxe4 {[%emt 0:00:20]} 38. Qh4 {[%emt 0:02:54] Kh7} 0-1